[Event "FIDE World Rapid Chess Championship 2021"]
[White "Tang, Andrew"]
[Black "Kobalia, Mikhail"]
[WhiteFideId "2059630"]
[BlackFideId "4119150"]
[WhiteElo "2427"]
[BlackElo "2543"]
[Result "1/2-1/2"]
[Round "09"]
[TimeControl "900+10"]
[Date "2021.12.27"]
[WhiteClock "0:00:24"]
[BlackClock "0:00:07"]

1. d4 {[%clk 0:15:00]}  d5 {[%clk 0:15:00]} 2. Nf3 {[%clk 0:15:00]}  Nf6 {[%clk 0:15:00]} 3. Bf4 {[%clk 0:15:00]}  c5 {[%clk 0:15:00]} 4. e3 {[%clk 0:15:00]}  Nc6 {[%clk 0:15:00]} 5. Nbd2 {[%clk 0:15:00]}  cxd4 {[%clk 0:15:00]} 6. exd4 {[%clk 0:15:00]}  Bf5 {[%clk 0:15:00]} 7. Bb5 {[%clk 0:15:00]}  Qb6 {[%clk 0:15:00]} 8. c4 {[%clk 0:15:00]}  dxc4 {[%clk 0:15:00]} 9. a4 {[%clk 0:14:37]}  e6 {[%clk 0:15:37]} 10. Nxc4 {[%clk 0:14:16]}  Qd8 {[%clk 0:14:11]} 11. O-O {[%clk 0:14:16]}  Be7 {[%clk 0:14:07]} 12. Nce5 {[%clk 0:11:05]}  Qb6 {[%clk 0:12:21]} 13. Nc4 {[%clk 0:10:40]}  Qd8 {[%clk 0:09:31]} 14. a5 {[%clk 0:10:40]}  Qd5 {[%clk 0:09:38]} 15. Qa4 {[%clk 0:04:30]}  O-O {[%clk 0:09:38]} 16. a6 {[%clk 0:04:30]}  Nb4 {[%clk 0:07:27]} 17. axb7 {[%clk 0:04:09]}  Qxb7 {[%clk 0:07:27]} 18. Nd6 {[%clk 0:04:09]}  Qb6 {[%clk 0:06:56]} 19. Qxb4 {[%clk 0:03:17]}  Nd5 {[%clk 0:06:56]} 20. Qc4 {[%clk 0:03:17]}  Bxd6 {[%clk 0:03:00]} 21. Ra6 {[%clk 0:02:55]}  Bxf4 {[%clk 0:03:00]} 22. Rxb6 {[%clk 0:02:55]}  axb6 {[%clk 0:03:00]} 23. Qe2 {[%clk 0:02:55]}  Rfc8 {[%clk 0:02:33]} 24. Nh4 {[%clk 0:01:41]}  Rc2 {[%clk 0:02:33]} 25. Qf3 {[%clk 0:01:41]}  Bg6 {[%clk 0:02:33]} 26. Nxg6 {[%clk 0:01:20]}  hxg6 {[%clk 0:00:41]} 27. Qb3 {[%clk 0:01:20]}  Rac8 {[%clk 0:00:41]} 28. Bd3 {[%clk 0:01:20]}  Rd2 {[%clk 0:00:41]} 29. g3 {[%clk 0:01:20]}  Bg5 {[%clk 0:00:41]} 30. Be4 {[%clk 0:01:20]}  Nf6 {[%clk 0:00:41]} 31. Bf3 {[%clk 0:01:20]}  Rcc2 {[%clk 0:00:41]} 32. Qxb6 {[%clk 0:01:20]}  Rxb2 {[%clk 0:01:16]} 33. Qd8+ {[%clk 0:00:25]}  Kh7 {[%clk 0:01:16]} 34. h4 {[%clk 0:00:25]}  Bh6 {[%clk 0:01:16]} 35. g4 {[%clk 0:00:25]}  Bf4 {[%clk 0:01:16]} 36. g5 {[%clk 0:00:25]}  Nh5 {[%clk 0:01:16]} 37. Qe8 {[%clk 0:00:25]}  Ng3 {[%clk 0:00:00]} 38. Qxf7 {[%clk 0:00:19]}  Nxf1 {[%clk 0:00:00]} 39. Qxf4 {[%clk 0:00:19]}  Rxf2 {[%clk 0:00:00]} 40. h5 {[%clk 0:00:19]}  Nh2 {[%clk 0:00:00]} 41. hxg6+ {[%clk 0:00:19]}  Kxg6 {[%clk 0:00:00]} 42. Qe4+ {[%clk 0:00:19]}  Kxg5 {[%clk 0:00:00]} 43. Qe5+ {[%clk 0:00:19]}  Kh6 {[%clk 0:00:00]} 44. Qxe6+ {[%clk 0:00:19]}  g6 {[%clk 0:00:00]} 45. Qe3+ {[%clk 0:00:19]}  Kh7 {[%clk 0:00:00]} 46. Qe7+ {[%clk 0:00:24]}  Kh6 {[%clk 0:00:07]} 47. Qe3+ {[%clk 0:00:24]}  Kg7 {[%clk 0:00:07]} 48. Qe7+ {[%clk 0:00:24]}  Kh6 {[%clk 0:00:07]} 49. Qe3+ {[%clk 0:00:24]} 1/2-1/2


[Site "http://www.Chess.com"]

[Event "FIDE World Rapid Chess Championship 2021"]
[White "Blohberger, Felix"]
[Black "Zvjaginsev, Vadim"]
[WhiteFideId "1632051"]
[BlackFideId "4113403"]
[WhiteElo "2409"]
[BlackElo "2539"]
[Result "0-1"]
[Round "09"]
[TimeControl "900+10"]
[Date "2021.12.27"]
[WhiteClock "0:00:00"]
[BlackClock "0:02:57"]

1. d4 {[%clk 0:15:00]}  d6 {[%clk 0:15:00]} 2. e4 {[%clk 0:15:00]}  Nf6 {[%clk 0:15:00]} 3. Nc3 {[%clk 0:15:00]}  g6 {[%clk 0:15:00]} 4. Bg5 {[%clk 0:15:00]}  h6 {[%clk 0:15:00]} 5. Bf4 {[%clk 0:15:00]}  Nc6 {[%clk 0:15:00]} 6. Bb5 {[%clk 0:13:38]}  a6 {[%clk 0:14:44]} 7. Bxc6+ {[%clk 0:13:38]}  bxc6 {[%clk 0:14:44]} 8. Nge2 {[%clk 0:13:38]}  Bg7 {[%clk 0:14:44]} 9. Qd2 {[%clk 0:13:38]}  Nd7 {[%clk 0:14:44]} 10. O-O {[%clk 0:12:14]}  c5 {[%clk 0:14:07]} 11. d5 {[%clk 0:12:14]}  a5 {[%clk 0:14:07]} 12. b3 {[%clk 0:12:14]}  Ba6 {[%clk 0:14:07]} 13. Rad1 {[%clk 0:12:14]}  Bxe2 {[%clk 0:12:42]} 14. Nxe2 {[%clk 0:11:57]}  a4 {[%clk 0:12:42]} 15. Nc3 {[%clk 0:10:52]}  axb3 {[%clk 0:11:07]} 16. axb3 {[%clk 0:10:52]}  Qb8 {[%clk 0:11:07]} 17. Ra1 {[%clk 0:10:52]}  g5 {[%clk 0:11:07]} 18. Be3 {[%clk 0:09:17]}  Rxa1 {[%clk 0:10:31]} 19. Rxa1 {[%clk 0:09:17]}  f5 {[%clk 0:10:31]} 20. exf5 {[%clk 0:09:17]}  Qb4 {[%clk 0:10:31]} 21. f6 {[%clk 0:09:17]}  Bxf6 {[%clk 0:08:41]} 22. Ra8+ {[%clk 0:08:07]}  Kf7 {[%clk 0:02:06]} 23. Rxh8 {[%clk 0:09:07]}  Bxh8 {[%clk 0:02:06]} 24. Ne2 {[%clk 0:00:00]}  Nf6 {[%clk 0:08:36]} 25. Qxb4 {[%clk 0:00:00]}  cxb4 {[%clk 0:08:36]} 26. Bd4 {[%clk 0:00:00]}  Bg7 {[%clk 0:08:36]} 27. Bxf6 {[%clk 0:00:00]}  Kxf6 {[%clk 0:08:36]} 28. Nd4 {[%clk 0:00:00]}  Ke5 {[%clk 0:08:36]} 29. Nc6+ {[%clk 0:00:00]}  Kxd5 {[%clk 0:02:57]} 30. Nxe7+ {[%clk 0:00:00]}  Kd4 {[%clk 0:02:57]} 31. Nf5+ {[%clk 0:00:00]}  Kc3 {[%clk 0:02:57]} 32. Nxg7 {[%clk 0:00:00]}  Kxc2 {[%clk 0:02:57]} 33. Ne6 {[%clk 0:00:00]}  c5 {[%clk 0:02:57]} 34. f4 {[%clk 0:00:00]}  gxf4 {[%clk 0:02:57]} 35. Nxf4 {[%clk 0:00:00]}  Kxb3 {[%clk 0:02:57]} 36. g4 {[%clk 0:00:00]}  Kc2 {[%clk 0:02:57]} 37. Nd5 {[%clk 0:00:00]}  b3 {[%clk 0:02:57]} 38. Ne3+ {[%clk 0:00:00]}  Kc1 {[%clk 0:02:57]} 39. Nc4 {[%clk 0:00:00]}  d5 {[%clk 0:02:57]} 40. Na3 {[%clk 0:00:00]}  d4 {[%clk 0:02:57]} 41. h4 {[%clk 0:00:00]}  d3 {[%clk 0:02:57]} 42. Nc4 {[%clk 0:00:00]}  d2 {[%clk 0:02:57]} 0-1


[Site "http://www.Chess.com"]

[Event "FIDE World Rapid Chess Championship 2021"]
[White "Murzin, Volodar"]
[Black "Nevednichy, Vladislav"]
[WhiteFideId "44155573"]
[BlackFideId "1205730"]
[WhiteElo "2523"]
[BlackElo "2425"]
[Result "1-0"]
[Round "09"]
[TimeControl "900+10"]
[Date "2021.12.27"]
[WhiteClock "0:00:51"]
[BlackClock "0:00:32"]

1. e4 {[%clk 0:15:00]}  c5 {[%clk 0:15:00]} 2. Nf3 {[%clk 0:15:00]}  d6 {[%clk 0:15:00]} 3. Bb5+ {[%clk 0:15:00]}  Nd7 {[%clk 0:15:00]} 4. O-O {[%clk 0:15:00]}  Nf6 {[%clk 0:15:00]} 5. Re1 {[%clk 0:15:00]}  a6 {[%clk 0:15:00]} 6. Bf1 {[%clk 0:15:00]}  b6 {[%clk 0:15:00]} 7. c4 {[%clk 0:15:54]}  e5 {[%clk 0:14:57]} 8. Nc3 {[%clk 0:15:54]}  g6 {[%clk 0:14:57]} 9. d3 {[%clk 0:15:54]}  Bg7 {[%clk 0:14:57]} 10. g3 {[%clk 0:13:01]}  Nb8 {[%clk 0:14:58]} 11. Bg5 {[%clk 0:13:01]}  Bg4 {[%clk 0:14:58]} 12. Nd5 {[%clk 0:13:01]}  h6 {[%clk 0:14:58]} 13. Bxf6 {[%clk 0:11:22]}  Bxf6 {[%clk 0:14:42]} 14. Be2 {[%clk 0:11:22]}  Bxf3 {[%clk 0:14:42]} 15. Bxf3 {[%clk 0:11:22]}  h5 {[%clk 0:14:42]} 16. Qb3 {[%clk 0:09:54]}  Nd7 {[%clk 0:13:24]} 17. Bg2 {[%clk 0:08:42]}  Be7 {[%clk 0:12:45]} 18. Bh3 {[%clk 0:06:27]}  Nf6 {[%clk 0:09:37]} 19. Qxb6 {[%clk 0:06:27]}  Qxb6 {[%clk 0:09:44]} 20. Nxb6 {[%clk 0:04:05]}  Rb8 {[%clk 0:09:44]} 21. Na4 {[%clk 0:04:05]}  Bd8 {[%clk 0:09:44]} 22. Kg2 {[%clk 0:04:05]}  Ba5 {[%clk 0:09:44]} 23. Re2 {[%clk 0:04:05]}  g5 {[%clk 0:07:31]} 24. Bf5 {[%clk 0:02:58]}  h4 {[%clk 0:07:31]} 25. b3 {[%clk 0:02:58]}  Ke7 {[%clk 0:07:31]} 26. Rc2 {[%clk 0:02:54]}  Rh6 {[%clk 0:04:56]} 27. Nb2 {[%clk 0:02:54]}  Rbh8 {[%clk 0:04:08]} 28. Rh1 {[%clk 0:01:51]}  Rb8 {[%clk 0:04:08]} 29. Nd1 {[%clk 0:01:51]}  Rhh8 {[%clk 0:04:08]} 30. Ne3 {[%clk 0:01:51]}  Bc7 {[%clk 0:04:08]} 31. Rb1 {[%clk 0:01:35]}  Rb7 {[%clk 0:03:05]} 32. Bh3 {[%clk 0:01:35]}  Kf8 {[%clk 0:03:05]} 33. Bc8 {[%clk 0:01:35]}  Rb6 {[%clk 0:03:05]} 34. Rcb2 {[%clk 0:01:35]}  Kg7 {[%clk 0:03:05]} 35. Bh3 {[%clk 0:01:35]}  Kg6 {[%clk 0:03:05]} 36. Bf5+ {[%clk 0:01:35]}  Kg7 {[%clk 0:03:05]} 37. Rg1 {[%clk 0:01:35]}  Bd8 {[%clk 0:02:35]} 38. Kh1 {[%clk 0:00:32]}  Kf8 {[%clk 0:02:35]} 39. Rgb1 {[%clk 0:00:32]}  a5 {[%clk 0:02:35]} 40. a3 {[%clk 0:00:32]}  Kg7 {[%clk 0:00:11]} 41. b4 {[%clk 0:00:39]}  axb4 {[%clk 0:00:11]} 42. axb4 {[%clk 0:00:39]}  Rxb4 {[%clk 0:00:11]} 43. Rxb4 {[%clk 0:00:39]}  cxb4 {[%clk 0:00:11]} 44. Rxb4 {[%clk 0:00:39]}  Ba5 {[%clk 0:00:11]} 45. Rb7 {[%clk 0:00:39]}  Bd2 {[%clk 0:00:11]} 46. gxh4 {[%clk 0:01:04]}  gxh4 {[%clk 0:00:05]} 47. Be6 {[%clk 0:01:04]}  Bxe3 {[%clk 0:00:05]} 48. fxe3 {[%clk 0:01:04]}  Rf8 {[%clk 0:00:05]} 49. Kg2 {[%clk 0:01:04]}  Kg6 {[%clk 0:00:05]} 50. Bf5+ {[%clk 0:01:04]}  Kg5 {[%clk 0:00:05]} 51. Kf3 {[%clk 0:01:04]}  Nh5 {[%clk 0:00:05]} 52. Rd7 {[%clk 0:01:04]}  Ng7 {[%clk 0:00:05]} 53. Bh3 {[%clk 0:01:04]}  Ne8 {[%clk 0:00:05]} 54. Rd8 {[%clk 0:01:04]}  Rg8 {[%clk 0:00:05]} 55. Bf5 {[%clk 0:01:04]}  Kh5 {[%clk 0:00:05]} 56. d4 {[%clk 0:01:04]}  Kg5 {[%clk 0:00:32]} 57. dxe5 {[%clk 0:00:51]}  dxe5 {[%clk 0:00:32]} 58. c5 {[%clk 0:00:51]}  Kh6 {[%clk 0:00:32]} 59. c6 {[%clk 0:00:51]}  Kg7 {[%clk 0:00:32]} 60. Rxe8 {[%clk 0:00:51]}  Rxe8 {[%clk 0:00:32]} 61. c7 {[%clk 0:00:51]} 1-0


[Site "http://www.Chess.com"]

[Event "FIDE World Rapid Chess Championship 2021"]
[White "Gajewski, Grzegorz"]
[Black "Jakubowski, Krzysztof"]
[WhiteFideId "1116207"]
[BlackFideId "1112848"]
[WhiteElo "2496"]
[BlackElo "2399"]
[Result "0-1"]
[Round "09"]
[TimeControl "900+10"]
[Date "2021.12.27"]
[WhiteClock "0:00:24"]
[BlackClock "0:01:42"]

1. Nf3 {[%clk 0:15:00]}  Nf6 {[%clk 0:15:00]} 2. c4 {[%clk 0:15:00]}  e6 {[%clk 0:15:00]} 3. Nc3 {[%clk 0:15:00]}  Bb4 {[%clk 0:15:00]} 4. Qc2 {[%clk 0:15:00]}  O-O {[%clk 0:15:00]} 5. a3 {[%clk 0:15:00]}  Bxc3 {[%clk 0:15:00]} 6. Qxc3 {[%clk 0:15:00]}  b6 {[%clk 0:13:34]} 7. b4 {[%clk 0:16:03]}  Bb7 {[%clk 0:13:34]} 8. Bb2 {[%clk 0:16:03]}  d5 {[%clk 0:13:34]} 9. e3 {[%clk 0:16:03]}  Nbd7 {[%clk 0:13:34]} 10. Be2 {[%clk 0:16:12]}  c5 {[%clk 0:13:12]} 11. O-O {[%clk 0:16:12]}  Qe7 {[%clk 0:13:12]} 12. bxc5 {[%clk 0:13:31]}  Nxc5 {[%clk 0:12:47]} 13. a4 {[%clk 0:13:31]}  Rfc8 {[%clk 0:12:47]} 14. d3 {[%clk 0:12:03]}  dxc4 {[%clk 0:11:04]} 15. Qxc4 {[%clk 0:08:26]}  Ba6 {[%clk 0:08:37]} 16. Qb4 {[%clk 0:08:26]}  Nd5 {[%clk 0:08:37]} 17. Qa3 {[%clk 0:08:26]}  Nb7 {[%clk 0:08:37]} 18. Nd4 {[%clk 0:04:30]}  Qxa3 {[%clk 0:07:37]} 19. Rxa3 {[%clk 0:04:30]}  Rc7 {[%clk 0:07:37]} 20. Bf3 {[%clk 0:04:30]}  Rac8 {[%clk 0:05:27]} 21. Nb5 {[%clk 0:04:41]}  Bxb5 {[%clk 0:05:27]} 22. axb5 {[%clk 0:04:41]}  Na5 {[%clk 0:05:27]} 23. g3 {[%clk 0:04:41]}  Rc5 {[%clk 0:05:27]} 24. Bd4 {[%clk 0:02:54]}  Rxb5 {[%clk 0:05:27]} 25. Bd1 {[%clk 0:01:39]}  Rb1 {[%clk 0:04:10]} 26. Ba4 {[%clk 0:01:39]}  Rcc1 {[%clk 0:03:16]} 27. Rxc1 {[%clk 0:00:42]}  Rxc1+ {[%clk 0:03:16]} 28. Kg2 {[%clk 0:00:42]}  h6 {[%clk 0:03:16]} 29. Bb5 {[%clk 0:00:42]}  Nb4 {[%clk 0:03:16]} 30. Ra4 {[%clk 0:00:42]}  Nc2 {[%clk 0:03:16]} 31. Be5 {[%clk 0:00:42]}  Ne1+ {[%clk 0:03:16]} 32. Kh3 {[%clk 0:00:42]}  Rc5 {[%clk 0:03:16]} 33. Ba6 {[%clk 0:00:24]}  Rxe5 {[%clk 0:01:42]} 34. d4 {[%clk 0:00:24]}  Rh5+ {[%clk 0:01:42]} 35. Kg4 {[%clk 0:00:24]}  Rxh2 {[%clk 0:01:42]} 36. Ra2 {[%clk 0:00:24]}  g5 {[%clk 0:01:42]} 37. Re2 {[%clk 0:00:24]}  f5# {[%clk 0:01:42]} 0-1


[Site "http://www.Chess.com"]

[Event "FIDE World Rapid Chess Championship 2021"]
[White "Faizrakhmanov, Ramil"]
[Black "Petrovskyi, Vadym"]
[WhiteFideId "24103209"]
[BlackFideId "14165210"]
[WhiteElo "2461"]
[BlackElo "2282"]
[Result "1-0"]
[Round "09"]
[TimeControl "900+10"]
[Date "2021.12.27"]
[WhiteClock "0:01:00"]
[BlackClock "0:01:11"]

1. d4 {[%clk 0:15:00]}  Nf6 {[%clk 0:15:00]} 2. c4 {[%clk 0:15:00]}  g6 {[%clk 0:15:00]} 3. Nc3 {[%clk 0:15:00]}  Bg7 {[%clk 0:15:00]} 4. e4 {[%clk 0:15:00]}  d6 {[%clk 0:15:00]} 5. h3 {[%clk 0:15:00]}  O-O {[%clk 0:15:00]} 6. Be3 {[%clk 0:15:00]}  c5 {[%clk 0:15:00]} 7. d5 {[%clk 0:15:00]}  a6 {[%clk 0:15:00]} 8. a4 {[%clk 0:15:00]}  e6 {[%clk 0:15:00]} 9. Bd3 {[%clk 0:15:00]}  exd5 {[%clk 0:15:00]} 10. exd5 {[%clk 0:15:00]}  Re8 {[%clk 0:15:00]} 11. Nf3 {[%clk 0:15:00]}  Nbd7 {[%clk 0:15:00]} 12. O-O {[%clk 0:15:00]}  Ne5 {[%clk 0:15:00]} 13. Nxe5 {[%clk 0:15:51]}  Rxe5 {[%clk 0:15:49]} 14. Qf3 {[%clk 0:15:51]}  Bf5 {[%clk 0:15:15]} 15. Bf4 {[%clk 0:13:43]}  Bxd3 {[%clk 0:15:15]} 16. Qxd3 {[%clk 0:13:43]}  Re8 {[%clk 0:15:15]} 17. Rae1 {[%clk 0:13:43]}  Qb6 {[%clk 0:15:15]} 18. Qc2 {[%clk 0:12:34]}  h6 {[%clk 0:15:12]} 19. b3 {[%clk 0:10:38]}  Nd7 {[%clk 0:13:25]} 20. Ne4 {[%clk 0:09:22]}  Ne5 {[%clk 0:13:25]} 21. Bd2 {[%clk 0:06:46]}  f5 {[%clk 0:11:56]} 22. Ng3 {[%clk 0:06:46]}  Qc7 {[%clk 0:11:56]} 23. Bc3 {[%clk 0:06:46]}  Qf7 {[%clk 0:11:56]} 24. Ne2 {[%clk 0:06:06]}  f4 {[%clk 0:10:38]} 25. f3 {[%clk 0:06:06]}  Re7 {[%clk 0:10:38]} 26. Nc1 {[%clk 0:06:06]}  Rae8 {[%clk 0:10:38]} 27. Re4 {[%clk 0:04:57]}  g5 {[%clk 0:09:42]} 28. Rfe1 {[%clk 0:04:57]}  b5 {[%clk 0:09:42]} 29. axb5 {[%clk 0:03:24]}  axb5 {[%clk 0:08:52]} 30. Kf1 {[%clk 0:03:24]}  bxc4 {[%clk 0:08:46]} 31. bxc4 {[%clk 0:01:29]}  h5 {[%clk 0:08:46]} 32. Bxe5 {[%clk 0:01:29]}  Rxe5 {[%clk 0:08:46]} 33. Rxe5 {[%clk 0:01:13]}  Rxe5 {[%clk 0:06:59]} 34. Rxe5 {[%clk 0:01:13]}  Bxe5 {[%clk 0:06:59]} 35. Nd3 {[%clk 0:01:13]}  Bd4 {[%clk 0:06:59]} 36. Qe2 {[%clk 0:01:13]}  h4 {[%clk 0:06:59]} 37. Ne1 {[%clk 0:00:46]}  Kg7 {[%clk 0:05:57]} 38. Nc2 {[%clk 0:00:46]}  Be5 {[%clk 0:05:57]} 39. Ne1 {[%clk 0:00:46]}  Qa7 {[%clk 0:05:57]} 40. Nd3 {[%clk 0:00:46]}  Bc3 {[%clk 0:05:57]} 41. Kg1 {[%clk 0:00:46]}  Qf7 {[%clk 0:04:42]} 42. Qe4 {[%clk 0:00:22]}  Bd4+ {[%clk 0:04:42]} 43. Kh2 {[%clk 0:00:22]}  Qd7 {[%clk 0:04:42]} 44. Ne1 {[%clk 0:00:22]}  Be5 {[%clk 0:04:42]} 45. Nd3 {[%clk 0:00:22]}  Bd4 {[%clk 0:04:42]} 46. Nb4 {[%clk 0:00:22]}  Qb7 {[%clk 0:04:42]} 47. Nc6 {[%clk 0:00:22]}  Bf6 {[%clk 0:04:12]} 48. Qe6 {[%clk 0:00:37]}  Qc7 {[%clk 0:04:12]} 49. Qe8 {[%clk 0:00:37]}  Qf7 {[%clk 0:04:12]} 50. Qxf7+ {[%clk 0:00:37]}  Kxf7 {[%clk 0:04:12]} 51. Kg1 {[%clk 0:00:37]}  Kg6 {[%clk 0:04:12]} 52. Kf1 {[%clk 0:00:37]}  Kf5 {[%clk 0:04:12]} 53. Ke2 {[%clk 0:00:37]}  Kg6 {[%clk 0:02:25]} 54. Kd3 {[%clk 0:00:59]}  Kf5 {[%clk 0:02:25]} 55. Kc2 {[%clk 0:00:59]}  Kg6 {[%clk 0:02:25]} 56. Kb3 {[%clk 0:00:59]}  Kf7 {[%clk 0:02:25]} 57. Ka4 {[%clk 0:00:59]}  Ke8 {[%clk 0:02:25]} 58. Kb5 {[%clk 0:00:59]}  Kd7 {[%clk 0:02:25]} 59. Kb6 {[%clk 0:00:59]}  Bc3 {[%clk 0:02:25]} 60. Kb7 {[%clk 0:00:59]}  Be1 {[%clk 0:02:25]} 61. Nb8+ {[%clk 0:00:59]}  Ke7 {[%clk 0:02:25]} 62. Kc6 {[%clk 0:00:59]}  Ba5 {[%clk 0:01:00]} 63. Nd7 {[%clk 0:01:01]}  Bd8 {[%clk 0:01:00]} 64. Nb6 {[%clk 0:01:01]}  Kf6 {[%clk 0:01:00]} 65. Nc8 {[%clk 0:01:01]}  Ke5 {[%clk 0:01:00]} 66. Nxd6 {[%clk 0:01:01]}  Kd4 {[%clk 0:01:00]} 67. Nb7 {[%clk 0:01:01]}  Bf6 {[%clk 0:01:00]} 68. Nxc5 {[%clk 0:01:01]}  Kxc4 {[%clk 0:01:00]} 69. Ne4 {[%clk 0:01:01]}  Bd8 {[%clk 0:01:00]} 70. Kd7 {[%clk 0:01:01]}  Ba5 {[%clk 0:01:00]} 71. Ke6 {[%clk 0:01:01]}  Bd8 {[%clk 0:01:00]} 72. d6 {[%clk 0:01:00]}  Kd4 {[%clk 0:01:11]} 73. d7 {[%clk 0:01:00]}  g4 {[%clk 0:01:11]} 74. hxg4 {[%clk 0:01:00]}  h3 {[%clk 0:01:11]} 75. gxh3 {[%clk 0:01:00]}  Ke3 {[%clk 0:01:11]} 76. g5 {[%clk 0:01:00]}  Kxf3 {[%clk 0:01:11]} 77. g6 {[%clk 0:01:00]} 1-0


[Site "http://www.Chess.com"]

[Event "FIDE World Rapid Chess Championship 2021"]
[White "Van Foreest, Lucas"]
[Black "Carlsson, Pontus"]
[WhiteFideId "1039792"]
[BlackFideId "1705814"]
[WhiteElo "2374"]
[BlackElo "2436"]
[Result "1-0"]
[Round "09"]
[TimeControl "900+10"]
[Date "2021.12.27"]
[WhiteClock "0:12:18"]
[BlackClock "0:00:31"]

1. e4 {[%clk 0:15:00]}  c5 {[%clk 0:15:00]} 2. c3 {[%clk 0:15:00]}  d5 {[%clk 0:15:00]} 3. exd5 {[%clk 0:15:00]}  Qxd5 {[%clk 0:15:00]} 4. d4 {[%clk 0:15:00]}  g6 {[%clk 0:15:00]} 5. Na3 {[%clk 0:15:00]}  Bg7 {[%clk 0:15:39]} 6. dxc5 {[%clk 0:15:44]}  Qxc5 {[%clk 0:08:37]} 7. Nb5 {[%clk 0:15:18]}  a6 {[%clk 0:08:37]} 8. Be3 {[%clk 0:15:18]}  Qc6 {[%clk 0:08:37]} 9. Qd5 {[%clk 0:15:18]}  Qxd5 {[%clk 0:08:37]} 10. Nc7+ {[%clk 0:15:18]}  Kf8 {[%clk 0:08:37]} 11. Nxd5 {[%clk 0:15:18]}  Nd7 {[%clk 0:08:37]} 12. Nc7 {[%clk 0:15:18]}  Rb8 {[%clk 0:08:37]} 13. Ba7 {[%clk 0:15:18]}  e6 {[%clk 0:06:16]} 14. a4 {[%clk 0:13:47]}  Ne7 {[%clk 0:05:56]} 15. a5 {[%clk 0:13:47]}  Nc6 {[%clk 0:05:56]} 16. Bxb8 {[%clk 0:13:47]}  Ncxb8 {[%clk 0:05:56]} 17. Na8 {[%clk 0:13:47]}  Ke7 {[%clk 0:04:45]} 18. Nf3 {[%clk 0:13:12]}  Nc6 {[%clk 0:04:45]} 19. Be2 {[%clk 0:13:12]}  e5 {[%clk 0:04:24]} 20. O-O {[%clk 0:12:42]}  e4 {[%clk 0:04:24]} 21. Nd2 {[%clk 0:12:42]}  f5 {[%clk 0:04:24]} 22. Nc4 {[%clk 0:12:42]}  Nc5 {[%clk 0:04:24]} 23. Nab6 {[%clk 0:12:42]}  Be6 {[%clk 0:04:24]} 24. Rad1 {[%clk 0:12:42]}  Be5 {[%clk 0:01:45]} 25. Nxe5 {[%clk 0:12:44]}  Nxe5 {[%clk 0:01:45]} 26. Nd5+ {[%clk 0:12:44]}  Kf7 {[%clk 0:01:45]} 27. Nf4 {[%clk 0:12:44]}  Bb3 {[%clk 0:01:45]} 28. Rd6 {[%clk 0:12:44]}  Ke7 {[%clk 0:01:45]} 29. Rb6 {[%clk 0:12:10]}  Rd8 {[%clk 0:00:30]} 30. Rb1 {[%clk 0:12:10]}  Nc6 {[%clk 0:00:30]} 31. Bxa6 {[%clk 0:12:10]}  Bc2 {[%clk 0:00:30]} 32. Rc1 {[%clk 0:12:10]}  Nxa6 {[%clk 0:00:30]} 33. Rxb7+ {[%clk 0:12:10]}  Kf6 {[%clk 0:00:30]} 34. Rb6 {[%clk 0:12:10]}  Ke5 {[%clk 0:00:30]} 35. g3 {[%clk 0:11:33]}  g5 {[%clk 0:00:21]} 36. Rxc6 {[%clk 0:11:33]}  gxf4 {[%clk 0:00:21]} 37. gxf4+ {[%clk 0:11:33]}  Kxf4 {[%clk 0:00:21]} 38. Rxc2 {[%clk 0:11:33]}  Kf3 {[%clk 0:00:21]} 39. Rc1 {[%clk 0:11:33]}  Rg8+ {[%clk 0:00:21]} 40. Kh1 {[%clk 0:11:33]}  Nb8 {[%clk 0:00:21]} 41. Rf6 {[%clk 0:11:33]}  f4 {[%clk 0:00:21]} 42. Rg1 {[%clk 0:11:33]}  Rxg1+ {[%clk 0:00:21]} 43. Kxg1 {[%clk 0:11:33]}  Nd7 {[%clk 0:00:21]} 44. a6 {[%clk 0:11:33]}  Nxf6 {[%clk 0:00:21]} 45. a7 {[%clk 0:11:33]}  Ng4 {[%clk 0:00:21]} 46. a8=Q {[%clk 0:11:33]}  Nxf2 {[%clk 0:00:21]} 47. Qd5 {[%clk 0:12:18]}  Ke2 {[%clk 0:00:31]} 48. Qc4+ {[%clk 0:12:18]}  Ke1 {[%clk 0:00:31]} 49. Qf1+ {[%clk 0:12:18]} 1-0


[Site "http://www.Chess.com"]

[Event "FIDE World Rapid Chess Championship 2021"]
[White "Szpar, Milosz"]
[Black "Dvirnyy, Danyyil"]
[WhiteFideId "1184989"]
[BlackFideId "817570"]
[WhiteElo "2315"]
[BlackElo "2550"]
[Result "1-0"]
[Round "09"]
[TimeControl "900+10"]
[Date "2021.12.27"]
[WhiteClock "0:01:26"]
[BlackClock "0:03:58"]

1. e4 {[%clk 0:15:00]}  e5 {[%clk 0:15:00]} 2. Nf3 {[%clk 0:15:00]}  Nc6 {[%clk 0:15:00]} 3. Bb5 {[%clk 0:15:00]}  a6 {[%clk 0:15:00]} 4. Ba4 {[%clk 0:15:00]}  Nf6 {[%clk 0:15:00]} 5. O-O {[%clk 0:15:00]}  Be7 {[%clk 0:15:00]} 6. d3 {[%clk 0:15:00]}  b5 {[%clk 0:15:00]} 7. Bb3 {[%clk 0:15:00]}  O-O {[%clk 0:15:00]} 8. a4 {[%clk 0:15:00]}  b4 {[%clk 0:15:00]} 9. a5 {[%clk 0:15:00]}  d6 {[%clk 0:15:00]} 10. Nbd2 {[%clk 0:15:00]}  h6 {[%clk 0:15:00]} 11. h3 {[%clk 0:15:00]}  Re8 {[%clk 0:15:00]} 12. Nc4 {[%clk 0:15:00]}  Bf8 {[%clk 0:15:00]} 13. Bd2 {[%clk 0:15:00]}  Rb8 {[%clk 0:15:00]} 14. Re1 {[%clk 0:15:00]}  Nd7 {[%clk 0:15:01]} 15. Be3 {[%clk 0:11:00]}  Qf6 {[%clk 0:13:24]} 16. Ba4 {[%clk 0:11:00]}  Bb7 {[%clk 0:13:24]} 17. c3 {[%clk 0:08:08]}  bxc3 {[%clk 0:12:47]} 18. bxc3 {[%clk 0:08:08]}  Nc5 {[%clk 0:12:47]} 19. Bxc5 {[%clk 0:08:08]}  dxc5 {[%clk 0:12:47]} 20. Ne3 {[%clk 0:08:08]}  Ba8 {[%clk 0:08:28]} 21. Nd5 {[%clk 0:07:18]}  Qd6 {[%clk 0:08:28]} 22. Nd2 {[%clk 0:07:18]}  Rbc8 {[%clk 0:07:34]} 23. Nc4 {[%clk 0:05:58]}  Qg6 {[%clk 0:07:34]} 24. Re3 {[%clk 0:05:58]}  Qe6 {[%clk 0:07:34]} 25. Rg3 {[%clk 0:05:09]}  Red8 {[%clk 0:06:57]} 26. Bb3 {[%clk 0:05:09]}  Ne7 {[%clk 0:06:57]} 27. Nxe7+ {[%clk 0:02:40]}  Qxe7 {[%clk 0:06:28]} 28. Qh5 {[%clk 0:02:40]}  Rb8 {[%clk 0:06:28]} 29. Ba2 {[%clk 0:02:40]}  Bc6 {[%clk 0:03:54]} 30. Nxe5 {[%clk 0:02:31]}  Be8 {[%clk 0:03:54]} 31. Rf3 {[%clk 0:02:31]}  Rb2 {[%clk 0:03:54]} 32. Bc4 {[%clk 0:01:26]}  Rd6 {[%clk 0:03:58]} 33. Nxf7 {[%clk 0:01:26]}  Re6 {[%clk 0:03:58]} 34. Nxh6+ {[%clk 0:01:26]}  gxh6 {[%clk 0:03:58]} 35. Qg4+ {[%clk 0:01:26]} 1-0


[Site "http://www.Chess.com"]